bitfinex-derivatives/quotes_ETHF0:USTF0_20250107
["timestamp","ask_amount","ask_price","bid_price","bid_amount"]
[1736235258872,0.2726,3667.8,3667.7,40.8]
[1736235261576,0.27263,3667.3,3666.8,0.4438]
[1736235261768,2.4472154,3666.9,3666.8,0.4438]
[1736235261969,2.4472154,3666.9,3666.8,41.2438]
[1736235264373,2.4472154,3666.9,3666.8,40.8]
[1736235270383,0.27268,3666.7,3666.5,0.91313953]
[1736235270578,2.1745554,3666.6,3666.3,0.27271]
[1736235270774,2.1745554,3666.4,3666.3,0.4309]
[1736235272282,2.1745554,3666.4,3666.3,0.70361]
[1736235272478,0.4268,3666.6,3666.4,0.2727]
[1736235272683,0.69949,3666.6,3666.4,0.4328]
[1736235274685,0.4268,3666.6,3666.4,0.4328]
[1736235274885,0.27269,3666.5,3666.3,0.4309]
[1736235275476,0.4268,3666.6,3666.3,0.4309]
[1736235275676,0.2727,3666.5,3666.3,0.4309]
[1736235276394,0.69949,3666.6,3666.3,0.70361]
[1736235276797,0.4268,3666.6,3666.3,0.70361]
[1736235277097,0.69949,3666.6,3666.3,0.70361]
[1736235277701,0.69949,3666.6,3666.3,0.4309]
[1736235277893,0.69949,3666.6,3666.3,0.7036]
[1736235278100,0.69949,3666.6,3666.4,3.2078]
[1736235278297,3.2078,3667.2,3666.4,3.2078]
[1736235278700,0.27266,3667.0,3666.7,0.27268]
[1736235278902,0.27266,3667.0,3666.8,41.2329]
[1736235279100,0.27266,3667.0,3666.8,41.6845]
[1736235279697,2.1745554,3667.1,3666.8,41.6845]
[1736235280004,0.27266,3666.9,3666.8,41.6845]
[1736235280207,0.27266,3667.0,3666.8,41.6845]
[1736235280401,2.1745554,3667.1,3666.8,41.6845]
[1736235280706,0.27266,3666.9,3666.8,41.2516]
[1736235281094,0.27266,3666.9,3666.8,40.8]
[1736235281298,0.73346,3666.9,3666.8,40.8]
[1736235285702,0.4608,3666.9,3666.8,40.8]
[1736235285903,0.69436,3667.0,3666.8,40.8]
[1736235288114,0.27266,3666.9,3666.8,40.8]
[1736235290616,0.2727,3666.5,3666.1,6.70368904]
[1736235290918,2.1745554,3666.2,3666.1,0.27272]
[1736235291110,2.1745554,3666.2,3666.1,40.8]
[1736235291316,2.4472754,3666.2,3666.1,40.8]
[1736235294918,2.1745554,3666.2,3666.1,40.8]
[1736235295217,2.1745554,3666.2,3666.1,41.07272]
[1736235295515,2.4472754,3666.2,3666.1,40.8]
[1736235296115,2.1745554,3666.2,3666.1,40.8]
[1736235296421,2.1745554,3666.2,3666.1,41.07272]
[1736235297920,2.1745554,3666.2,3666.1,45.31714661]
[1736235300319,2.1745554,3666.2,3666.1,51.74811565]
[1736235301611,2.4472754,3666.2,3666.1,51.47539565]
[1736235304027,14.75833488,3666.2,3666.1,0.70479444]
[1736235304221,14.48561488,3666.2,3665.9,8.57280443]
[1736235304419,0.27273,3666.0,3665.9,7.87980443]
[1736235304925,7.20143408,3666.0,3665.9,7.87980443]
[1736235305724,7.20143408,3666.0,3665.1,0.4226]
[1736235305725,9.06774598,3666.0,3665.1,0.4226]
[1736235305921,2.1745554,3665.2,3665.1,0.4226]
[1736235308125,0.4617,3665.4,3665.1,0.4226]
[1736235308332,6.42033451,3666.1,3665.2,3.2078]
[1736235308535,6.69305451,3666.1,3665.7,0.27275]
[1736235308724,2.4117819,3665.9,3665.8,0.8622]
[1736235308925,2.1390419,3665.9,3665.2,3.6391]
[1736235309125,2.1390419,3665.9,3665.3,0.8622]
[1736235309626,0.27275,3665.8,3665.4,0.27277]
[1736235310327,0.27277,3665.5,3665.3,0.8622]
[1736235311430,3.4895554,3665.7,3665.3,0.8622]
[1736235311622,0.27276,3665.6,3665.3,0.8622]
[1736235311824,3.4895554,3665.7,3665.3,0.8622]
[1736235312129,0.27277,3665.5,3665.3,0.8622]
[1736235312928,0.27276,3665.6,3665.4,40.8]
[1736235313131,3.7623154,3665.7,3665.4,40.8]
[1736235313727,0.27276,3665.6,3665.4,40.8]
[1736235315636,0.27277,3665.5,3665.4,40.8]
[1736235317336,6.6973554,3665.7,3665.4,40.8]
[1736235317528,6.9701154,3665.7,3665.4,40.8]
[1736235317732,6.6973554,3665.7,3665.4,40.8]
[1736235318137,6.9701154,3665.7,3665.4,40.8]
[1736235319139,0.27276,3665.6,3665.4,40.8]
[1736235320842,3.4895554,3665.7,3665.4,40.8]
[1736235321041,0.27277,3665.5,3665.4,40.8]
[1736235323141,0.27279,3665.2,3664.9,3.2078]
[1736235323436,0.4346,3665.1,3664.9,3.2078]
[1736235323638,0.877,3665.1,3665.0,40.8]
[1736235324032,1.1498,3665.1,3665.0,40.8]
[1736235330954,0.27279,3665.3,3665.0,40.8]
[1736235331246,0.27278,3665.3,3665.0,40.8]
[1736235332046,0.27279,3665.2,3665.0,40.8]
[1736235332243,2.1745554,3665.3,3665.0,40.8]
[1736235332446,0.27279,3665.2,3665.0,40.8]
[1736235333654,2.4473454,3665.3,3665.0,40.8]
[1736235333862,2.1745554,3665.3,3665.1,0.4342]
[1736235334063,2.4473354,3665.3,3665.1,0.4342]
[1736235334463,2.1745554,3665.3,3665.1,0.4342]
[1736235334651,2.4473354,3665.3,3665.1,0.4342]
[1736235334855,2.1745554,3665.3,3665.1,0.4342]
[1736235335356,2.1745554,3665.3,3665.2,0.27279]
[1736235335555,0.27277,3665.5,3665.1,0.4342]
[1736235335757,2.6311554,3665.6,3665.1,0.4342]
[1736235335965,0.27277,3665.5,3665.2,0.27279]
[1736235336163,0.27277,3665.5,3665.1,0.70699]
[1736235336360,0.72936,3665.6,3665.2,0.27279]
[1736235336558,0.4566,3665.6,3665.3,0.27278]
[1736235336955,0.4566,3665.6,3665.2,3.647]
[1736235337163,0.4566,3665.6,3665.4,0.27277]
[1736235337362,0.4566,3665.6,3665.3,0.27278]
[1736235337867,0.4566,3665.6,3665.4,0.27277]
[1736235338271,0.4566,3665.6,3665.2,3.647]
[1736235338567,0.4566,3665.6,3665.3,0.27278]
[1736235339171,0.27277,3665.5,3665.2,3.2078]
[1736235339368,2.6311554,3665.6,3665.2,3.2078]
[1736235339869,2.9039154,3665.6,3665.2,3.48059]
[1736235340569,0.27275,3665.8,3665.4,0.27277]
[1736235340765,0.27275,3665.8,3665.5,0.4454]
[1736235340968,0.27275,3665.8,3665.6,0.4448]
[1736235341467,0.27275,3665.7,3665.6,0.4448]
[1736235341669,0.4228,3665.8,3665.2,7.48665631]
[1736235341971,2.1745554,3665.6,3665.3,0.4165]
[1736235342170,2.1745554,3665.6,3665.3,4.69535631]
[1736235342470,2.4473154,3665.6,3665.3,4.69535631]
[1736235343366,0.27278,3665.5,3665.3,4.69535631]
[1736235343561,0.8822,3665.5,3665.3,4.69535631]
[1736235343870,0.27278,3665.4,3665.3,4.69535631]
[1736235344868,0.27278,3665.4,3665.3,4.27885631]
[1736235346166,0.27278,3665.4,3665.3,4.70195631]
[1736235346571,0.27278,3665.4,3665.3,0.4231]
[1736235348767,0.27278,3665.4,3665.2,7.48665631]
[1736235348768,0.27278,3665.3,3665.2,4.27885631]
[1736235348974,2.8769354,3665.3,3665.2,4.27885631]
[1736235350471,2.8769354,3665.3,3665.2,3.58575631]
[1736235351379,2.8769354,3665.3,3665.0,40.8]
[1736235351380,0.2728,3665.1,3665.0,40.8]
[1736235351780,3.01353199,3665.3,3664.2,3.2078]
[1736235351980,0.27286,3664.4,3664.2,3.2078]
[1736235352277,0.4585,3664.3,3664.2,3.2078]
[1736235352872,0.4585,3664.3,3664.2,44.0078]
[1736235353772,0.4585,3664.3,3664.2,47.95097003]
[1736235354479,0.73136,3664.3,3664.2,47.95097003]
[1736235355281,0.27286,3664.3,3664.2,47.95097003]
[1736235359680,0.4245,3664.4,3664.2,47.95097003]
[1736235359886,0.69735,3664.4,3664.2,47.95097003]
[1736235360086,0.4245,3664.4,3664.2,47.95097003]
[1736235360286,0.71176,3664.3,3664.2,47.95097003]
[1736235360886,0.71176,3664.3,3664.2,44.0078]
[1736235361084,0.71176,3664.3,3664.2,3.2078]
[1736235361587,0.71176,3664.3,3664.2,44.0078]
[1736235362581,0.4389,3664.3,3664.2,44.0078]
[1736235363390,0.71176,3664.3,3664.2,44.0078]
[1736235365495,0.4389,3664.3,3664.2,44.0078]
[1736235367095,0.71413,3664.7,3664.2,44.0078]
[1736235367297,0.71413,3664.7,3664.3,0.27285]
[1736235367487,0.71413,3664.7,3664.3,0.69545]
[1736235368086,0.27284,3664.6,3664.3,0.4226]
[1736235368292,2.1745554,3664.5,3664.2,44.0078]
[1736235368486,0.69186,3664.4,3664.2,44.0078]
[1736235368687,0.419,3664.4,3664.2,44.0078]
[1736235368892,0.4547,3664.3,3664.2,44.0078]
[1736235369593,0.72756,3664.3,3664.2,44.0078]
[1736235370196,0.72756,3664.3,3664.2,3.2078]
[1736235373697,0.72756,3664.3,3663.9,0.27289]
[1736235373698,0.27287,3664.2,3663.9,0.27289]
[1736235373904,2.9032254,3664.2,3663.8,9.90475106]
[1736235374292,2.6303554,3664.2,3663.8,9.63186106]
[1736235374488,0.27287,3664.1,3663.8,9.90475106]
[1736235374694,0.27287,3664.1,3663.8,3.48069]
[1736235375395,0.2729,3663.8,3663.7,0.4516]
[1736235375587,0.2729,3663.8,3663.6,6.88556106]
[1736235375588,0.2729,3663.7,3663.6,6.42406106]
[1736235375894,1.1677,3663.7,3663.6,6.42406106]
[1736235376094,1.1677,3663.7,3663.4,6.42406106]
[1736235376095,0.8948,3663.7,3663.4,6.42406106]
[1736235376293,0.27292,3663.5,3663.4,7.29086106]
[1736235376500,0.27292,3663.5,3663.4,6.42406106]
[1736235377496,0.8948,3663.7,3663.3,3.2078]
[1736235377890,0.27291,3663.6,3663.3,3.48073]
[1736235378296,0.8948,3663.7,3663.3,3.2078]
[1736235378497,0.27291,3663.6,3663.3,3.48073]
[1736235379295,0.8948,3663.7,3663.3,3.48073]
[1736235379494,0.8948,3663.7,3663.3,3.2078]
[1736235379895,0.27291,3663.6,3663.4,0.27292]
[1736235380803,2.1745554,3663.6,3663.3,3.2078]
[1736235380999,2.4474754,3663.6,3663.4,0.27292]
[1736235381201,2.4474754,3663.6,3663.3,3.48073]
[1736235381202,0.27292,3663.5,3663.3,3.48073]
[1736235381402,2.4474654,3663.6,3663.4,0.27292]
[1736235381896,2.8874654,3663.6,3663.4,0.27292]
[1736235382302,2.6145554,3663.6,3663.3,3.2078]
[1736235382503,0.27292,3663.5,3663.3,3.2078]
[1736235382796,2.6145554,3663.6,3663.3,3.2078]
[1736235383201,0.27292,3663.5,3663.3,3.2078]
[1736235384503,2.6145554,3663.6,3663.3,3.2078]
[1736235384701,2.6145554,3663.6,3663.3,3.48073]
[1736235384902,0.27292,3663.5,3663.3,3.48073]
[1736235385304,2.8874654,3663.6,3663.4,0.27292]
[1736235385501,2.6145554,3663.6,3663.3,3.2078]
[1736235385701,2.8874654,3663.6,3663.4,0.27292]
[1736235386005,0.27289,3663.9,3663.3,3.2078]
[1736235386204,0.70489,3663.9,3663.7,0.2729]
[1736235386397,0.432,3663.9,3663.8,0.887]
[1736235386804,0.432,3663.9,3663.8,1.1599]
[1736235387201,0.9093,3664.2,3663.8,0.887]
[1736235387406,2.13568232,3664.3,3664.1,0.27287]
[1736235387708,2.13568232,3664.3,3663.8,0.887]
[1736235387709,0.4199,3664.4,3664.2,0.27286]
[1736235388107,3.2078,3664.5,3663.8,0.887]
[1736235388312,2.13568232,3664.7,3664.3,2.1745554]
[1736235388600,6.41906167,3665.0,3664.9,0.27281]
[1736235388800,6.41906167,3665.0,3664.9,2.4473654]
[1736235389006,2.13568232,3665.0,3664.9,2.4473654]
[1736235389204,1.44218232,3665.0,3664.9,2.4473654]
[1736235389405,3.20352349,3665.1,3665.0,0.27281]
[1736235389598,3.20352349,3665.1,3665.0,3.48061]
[1736235390111,4.28337935,3665.3,3665.2,0.27279]
[1736235390708,5.3823554,3665.8,3665.5,0.27277]
[1736235390903,3.2078,3665.8,3665.0,3.2078]
[1736235391311,3.2078,3665.8,3665.6,0.27276]
[1736235391604,3.2078,3665.8,3665.5,0.27277]
[1736235392203,0.4231,3666.0,3665.5,3.2078]
[1736235392509,3.2078,3666.2,3666.1,0.27272]
[1736235392701,0.4352,3666.5,3666.0,0.27273]
[1736235392908,0.4352,3666.5,3666.3,0.27271]
[1736235393412,3.6252,3666.7,3665.9,3.2078]
[1736235393605,2.1745554,3666.5,3665.9,3.2078]
[1736235393803,2.4472754,3666.2,3665.9,3.2078]
[1736235394005,2.1745554,3666.2,3665.9,3.2078]
[1736235394307,2.1745554,3666.2,3665.9,3.48054]
[1736235394504,2.1745554,3666.2,3665.9,3.2078]
[1736235394706,2.4472754,3666.2,3665.9,3.2078]
[1736235395607,2.1745554,3666.2,3665.9,3.2078]
[1736235395998,2.4472754,3666.2,3665.5,3.2078]
[1736235396316,0.27273,3666.0,3665.5,3.48057]
[1736235396605,2.4472754,3666.2,3665.6,0.27276]
[1736235396798,0.27273,3666.1,3665.6,0.27276]
[1736235397410,2.1745554,3666.2,3665.7,0.27275]
[1736235397708,2.4472754,3666.2,3665.7,0.27275]
[1736235397910,0.27273,3666.1,3665.7,0.27275]
[1736235398498,2.1745554,3666.2,3665.7,0.27275]
[1736235398808,2.4472754,3666.2,3665.7,0.27275]
[1736235400514,0.27273,3666.0,3665.6,0.27276]
[1736235400813,0.4257,3665.9,3665.6,0.27276]
[1736235401205,0.4402,3665.8,3665.6,0.27276]
[1736235402014,0.4402,3665.8,3665.7,0.27275]
[1736235402709,0.4402,3665.8,3665.5,3.2078]
[1736235403108,0.27276,3665.7,3665.5,3.2078]
[1736235403920,0.71295,3665.8,3665.5,3.2078]
[1736235404413,0.4402,3665.8,3665.5,3.48056]
[1736235404914,0.71295,3665.8,3665.5,3.2078]
[1736235406108,0.4402,3665.8,3665.5,3.2078]
[1736235406508,0.4402,3665.8,3665.6,0.27276]
[1736235407007,0.4257,3665.9,3665.8,0.27275]
[1736235407607,0.4359,3666.2,3665.5,3.2078]
[1736235407915,0.4359,3666.2,3666.1,0.27272]
[1736235408315,0.4359,3666.2,3665.9,3.2078]
[1736235408512,0.4359,3666.2,3666.0,0.27273]
[1736235409814,0.4359,3666.2,3665.9,3.2078]
[1736235410017,0.4359,3666.2,3666.0,0.27273]
[1736235412419,0.70862,3666.2,3666.0,0.27273]
[1736235413118,0.4359,3666.2,3665.9,3.2078]
[1736235413318,0.4359,3666.2,3666.0,0.27273]
[1736235414417,0.27275,3665.8,3665.5,3.48056]
[1736235414615,0.27273,3666.0,3665.6,0.27276]
[1736235414812,0.27275,3665.8,3665.6,0.27276]
[1736235415019,0.27275,3665.8,3665.5,3.48057]
[1736235415516,2.4473054,3665.8,3665.5,3.48057]
[1736235415916,2.4473054,3665.8,3665.5,0.27277]
[1736235416123,2.1745554,3665.8,3665.5,0.27277]
[1736235416310,0.27275,3665.7,3665.5,0.27277]
[1736235416622,0.4612,3665.6,3665.5,0.27277]
[1736235417626,0.9044,3665.6,3665.5,0.27277]
[1736235419522,0.9044,3665.6,3665.1,3.2078]
[1736235419825,0.9044,3665.6,3665.4,0.27277]
[1736235420428,0.9044,3665.6,3665.5,0.27277]
[1736235420622,0.9044,3665.6,3665.1,3.2078]
[1736235420825,0.9044,3665.6,3665.4,0.27277]
[1736235421721,0.9044,3665.6,3665.1,3.2078]
[1736235421922,0.9044,3665.6,3665.4,0.27277]
[1736235422623,1.17716,3665.6,3665.1,3.2078]
[1736235422823,0.9044,3665.6,3665.4,0.27277]
[1736235423226,1.17716,3665.6,3665.4,0.27277]
[1736235423528,1.17716,3665.6,3665.3,0.27278]
[1736235423720,0.27277,3665.5,3665.1,3.2078]
[1736235423923,0.27277,3665.5,3665.3,0.27278]
[1736235424628,0.9044,3665.6,3665.1,3.2078]
[1736235424823,0.27277,3665.5,3665.1,3.4806]
[1736235425023,0.27277,3665.5,3665.2,0.27279]
[1736235425224,0.27278,3665.4,3665.2,0.27279]
[1736235425622,0.27277,3665.5,3665.2,0.27279]
[1736235426530,0.9044,3665.6,3665.2,0.27279]
[1736235426725,0.27277,3665.5,3665.2,0.27279]
[1736235427334,0.27278,3665.4,3665.2,0.27279]
[1736235428032,0.27277,3665.5,3665.2,0.27279]
[1736235428329,0.27278,3665.4,3665.1,3.48059]
[1736235428529,0.27277,3665.5,3665.2,0.27279]
[1736235428730,0.27277,3665.5,3665.3,0.27278]
[1736235429728,1.17716,3665.6,3665.3,0.27278]
[1736235431532,1.17716,3665.6,3665.4,0.27278]
[1736235432629,0.9044,3665.6,3665.2,0.27279]
[1736235432826,0.9044,3665.6,3665.1,3.2078]
[1736235432827,1.17716,3665.6,3665.4,0.27277]
[1736235434237,0.27277,3665.5,3665.3,0.27278]
[1736235434444,0.27277,3665.5,3665.4,6.41498732]
[1736235435538,1.17716,3665.6,3665.4,6.68776732]
[1736235435739,1.17716,3665.6,3665.4,10.68645404]
[1736235436140,0.9044,3665.6,3665.4,10.41367404]
[1736235436543,0.9044,3665.6,3665.5,0.27277]
[1736235437047,0.9044,3665.6,3665.4,6.68775732]
[1736235437342,1.17716,3665.6,3665.4,6.68775732]
[1736235438447,1.17716,3665.6,3665.5,10.41327023]
[1736235438746,0.9044,3665.6,3665.5,10.68604023]
[1736235439444,0.4612,3665.6,3665.5,10.68604023]
[1736235439646,3.20352349,3666.1,3666.0,0.27273]
[1736235440745,3.20352349,3666.1,3665.5,3.99828291]
[1736235441049,2.1745554,3665.8,3665.7,0.27275]
[1736235441244,2.1745554,3665.8,3665.6,0.27276]
[1736235441446,0.4361,3665.7,3665.6,0.27276]
[1736235442855,0.4171,3666.0,3665.9,0.27274]
[1736235443046,0.4193,3666.2,3666.0,0.27273]
[1736235443247,0.4193,3666.2,3666.1,0.27272]
[1736235444653,0.4193,3666.2,3666.1,4.27126363]
[1736235445939,0.4193,3666.2,3666.1,10.70158223]
[1736235447041,0.4193,3666.2,3666.1,4.27126363]
[1736235449255,5.37807889,3666.9,3666.1,3.99854363]
[1736235449444,0.9114,3666.8,3666.6,0.27268]
[1736235450456,0.27268,3666.7,3666.4,0.2727]
[1736235450758,2.1745554,3666.6,3666.4,0.2727]
[1736235451346,2.1745554,3666.6,3666.4,6.69889293]
[1736235451546,2.1745554,3666.6,3666.4,6.42619293]
[1736235451746,2.1745554,3666.6,3666.5,0.27269]
[1736235452056,2.1745554,3666.6,3666.4,6.42619293]
[1736235452755,2.1745554,3666.6,3666.5,0.27269]
[1736235452952,1.18408,3666.8,3666.5,0.27269]
[1736235454755,1.18408,3666.8,3666.3,6.69890293]
[1736235454756,0.9114,3666.8,3666.3,6.69890293]
[1736235454956,0.27269,3666.6,3666.3,6.69890293]
[1736235455152,2.1745554,3666.6,3666.2,6.42619293]
[1736235455354,0.2727,3666.4,3666.2,6.42619293]
[1736235455558,2.1745554,3666.3,3666.2,6.42619293]
[1736235455762,6.0779654,3666.3,3666.2,5.73279293]
[1736235456056,6.0779654,3666.3,3666.2,5.03939293]
[1736235456254,6.0779654,3666.3,3666.2,4.34599293]
[1736235456456,6.0779654,3666.3,3666.2,4.2908106]
[1736235457760,0.27275,3665.7,3665.4,3.2078]
[1736235457951,2.4473054,3665.7,3665.4,3.2078]
[1736235458152,2.4473054,3665.7,3665.4,3.48057]
[1736235458347,2.1745554,3665.7,3665.4,3.48057]
[1736235459157,0.4575,3665.6,3665.4,3.48057]
[1736235459360,0.27277,3665.5,3665.2,0.6131]
[1736235459559,2.1745554,3665.4,3665.2,0.88589]
[1736235461160,0.4575,3665.6,3665.2,0.6131]
[1736235461358,3.2078,3665.8,3665.5,0.27277]
[1736235461359,3.48055,3665.8,3665.5,0.27277]
[1736235461553,3.2078,3665.8,3665.6,0.27276]
[1736235461764,3.48055,3665.8,3665.7,0.4467]
[1736235463467,0.27275,3665.7,3665.4,0.27277]
[1736235463769,0.27275,3665.7,3665.4,0.72747]
[1736235464670,0.27275,3665.7,3665.4,0.4547]
[1736235464873,0.27275,3665.7,3665.5,0.27277]
[1736235465664,0.27277,3665.5,3665.4,0.4547]
[1736235466572,0.27277,3665.6,3665.4,0.4547]
[1736235466961,3.2078,3665.8,3665.4,0.4547]
[1736235466962,0.27277,3665.5,3665.4,0.4547]
[1736235469370,5.8210554,3666.0,3665.4,0.4547]
[1736235469571,0.27276,3665.7,3665.4,0.72747]
[1736235469973,0.27276,3665.7,3665.5,0.27277]
[1736235470977,0.27275,3665.8,3665.6,0.27276]
[1736235473377,0.27274,3665.9,3665.6,0.27276]
[1736235473771,5.8210554,3666.0,3665.5,4.70488181]
[1736235474075,0.27276,3665.7,3665.5,4.97765181]
[1736235474275,5.8210554,3666.0,3665.5,4.97765181]
[1736235474475,0.27275,3665.7,3665.5,4.97765181]
[1736235474876,0.27275,3665.8,3665.5,4.97765181]
[1736235476979,0.27275,3665.8,3665.6,0.27276]
[1736235477180,6.0937954,3666.0,3665.7,0.27275]
[1736235477380,6.0937954,3666.0,3665.8,0.4411]
[1736235477975,0.27274,3665.9,3665.8,0.4411]
[1736235481181,6.0937854,3666.0,3665.8,0.4411]
[1736235483986,0.27274,3665.9,3665.8,0.4411]
[1736235503407,2.6132554,3666.0,3665.5,0.27276]
[1736235503613,0.27275,3665.8,3665.5,0.27276]
[1736235503909,0.27275,3665.7,3665.5,0.27276]
[1736235504112,0.27275,3665.7,3665.6,0.4215]
[1736235504311,2.6132554,3666.0,3665.6,0.4215]
[1736235504508,2.6132554,3666.0,3665.6,0.69426]
[1736235504711,2.6132554,3666.0,3665.6,0.4215]
[1736235504712,0.27275,3665.8,3665.6,0.4215]
[1736235504911,0.27275,3665.8,3665.6,0.8623]
[1736235505817,0.27275,3665.8,3665.6,1.13506]
[1736235506027,0.27275,3665.8,3665.7,12.53761278]
[1736235509425,1.25527319,3665.8,3665.7,20.43951731]
[1736235510527,3.39576034,3665.8,3665.7,20.43951731]
[1736235511623,1.25527319,3665.8,3665.7,20.43951731]
[1736235513224,3.39576034,3665.8,3665.7,12.53761278]
[1736235515915,3.39576034,3665.8,3665.7,20.44016876]
[1736235517332,3.39576034,3665.8,3665.7,12.53761278]
[1736235519923,3.39576034,3665.8,3665.7,12.81036278]
[1736235519924,3.12301034,3665.8,3665.7,12.81036278]
[1736235521032,3.39576034,3665.8,3665.7,12.81036278]
[1736235521532,3.39576034,3665.8,3665.7,12.12725318]
[1736235522033,3.12301034,3665.8,3665.7,12.12725318]
[1736235523131,3.39576034,3665.8,3665.7,11.85450318]
[1736235524934,3.39576034,3665.8,3665.7,12.12725318]
[1736235527729,3.12301034,3665.8,3665.7,12.12725318]
[1736235528029,2.14048715,3665.8,3665.7,13.10977637]
[1736235528233,2.58304985,3666.0,3665.7,12.83702637]
[1736235528430,2.58304985,3666.0,3665.9,1.25526319]
[1736235529026,4.28035027,3666.4,3666.3,0.27271]
[1736235529227,4.28035027,3666.4,3666.3,1.25523319]
[1736235529728,5.26287346,3666.4,3666.3,0.27271]
[1736235530432,0.98252319,3666.4,3666.3,12.12721318]
[1736235532035,0.98252319,3666.4,3666.3,12.80276085]
[1736235533636,0.98252319,3666.4,3666.3,4.22325709]
[1736235536038,1.25522319,3666.4,3666.3,3.95054709]
[1736235537639,1.25522319,3666.4,3666.3,4.28705155]
[1736235539441,1.25522319,3666.4,3666.2,4.28705155]
[1736235540245,0.98252319,3666.4,3666.2,4.28705155]
[1736235540444,0.71521,3666.3,3666.2,4.28705155]
[1736235545550,0.4425,3666.3,3666.2,4.28705155]
[1736235545843,0.98252319,3666.4,3666.2,4.01338911]
[1736235546044,4.6921861,3667.0,3666.2,8.2037123]
[1736235546254,5.94736929,3667.0,3666.7,0.27268]
[1736235546458,4.6921861,3667.0,3666.8,0.4519]
[1736235546663,4.28035027,3667.0,3666.8,0.4519]
[1736235547158,4.28035027,3667.0,3666.9,3.2078]
[1736235547358,6.33296103,3667.2,3666.9,3.48046]
[1736235547359,1.25517319,3667.2,3666.9,3.48046]
[1736235547763,0.98252319,3667.2,3667.0,0.27265]
[1736235547957,0.98252319,3667.2,3666.9,3.2078]
[1736235547958,1.25517319,3667.2,3666.9,3.48046]
[1736235548148,3.6264,3667.4,3667.3,0.27263]
[1736235548149,3.2078,3667.4,3667.3,0.27263]
[1736235548349,5.70647346,3667.5,3667.4,0.27263]
[1736235548553,5.26287346,3667.5,3667.4,0.27263]
[1736235548858,0.98252319,3667.5,3667.4,0.27263]
[1736235549054,0.98252319,3667.5,3667.4,0.70093]
[1736235549359,5.42815027,3667.8,3667.5,0.27262]
[1736235549655,0.27261,3667.6,3667.4,0.4283]
[1736235549857,0.27261,3667.6,3667.2,0.27264]
[1736235550359,2.44755386,3667.4,3667.0,0.70095]
[1736235550755,0.4189,3667.3,3667.2,6.42332001]
[1736235551458,0.69153,3667.3,3667.2,6.42332001]
[1736235552059,0.69153,3667.3,3667.2,4.28064901]
[1736235553357,0.69153,3667.3,3667.1,4.28064901]
[1736235553759,0.4189,3667.3,3667.1,4.55329901]
[1736235554152,0.69153,3667.3,3667.1,4.55329901]
[1736235554562,0.69153,3667.3,3667.1,4.28064901]
[1736235555457,0.69153,3667.3,3667.0,4.98159901]
[1736235555660,0.4189,3667.3,3667.1,0.27265]
[1736235557557,0.27261,3667.6,3667.4,0.27263]
[1736235557863,0.27262,3667.5,3667.2,0.27264]
[1736235558556,0.27262,3667.5,3667.1,0.27265]
[1736235558760,0.27262,3667.5,3667.2,0.27263]
[1736235559461,0.27262,3667.6,3667.3,0.27263]
[1736235559664,0.27262,3667.5,3667.0,4.70894901]
[1736235559862,0.27262,3667.5,3667.2,0.27264]
[1736235560157,0.27262,3667.5,3667.0,4.70894901]
[1736235560362,0.27262,3667.5,3667.3,0.27263]
[1736235562465,0.27262,3667.6,3667.3,0.27263]
[1736235562865,0.71751,3667.7,3667.0,4.70894901]
[1736235563263,0.4449,3667.7,3667.0,4.70894901]
[1736235563568,0.4563,3667.8,3667.7,0.2726]
[1736235564861,3.48039,3667.9,3667.7,0.2726]
[1736235565266,3.48039,3667.9,3667.8,0.4266]
[1736235566063,3.2078,3667.9,3667.8,0.4266]
[1736235566566,3.48039,3667.9,3667.8,0.4266]
[1736235566759,3.2078,3667.9,3667.8,0.4266]
[1736235566960,3.2078,3667.9,3667.8,0.6992]
[1736235567159,3.2078,3667.9,3667.8,0.4266]
[1736235567459,0.69218,3668.0,3667.8,0.4266]
[1736235567864,0.4196,3668.0,3667.9,0.27259]
[1736235568760,0.4243,3668.1,3667.9,0.27259]
[1736235569368,0.4243,3668.1,3667.8,1.316]
[1736235569369,0.4243,3668.1,3668.0,0.27258]
[1736235571567,0.4369,3668.2,3668.0,0.27258]
[1736235572463,0.70947,3668.2,3667.9,0.27259]
[1736235572670,0.27258,3668.1,3667.8,1.1291]
[1736235572871,0.27258,3668.1,3667.9,0.27259]
[1736235573368,0.98138507,3668.0,3667.9,0.27259]
[1736235573570,0.98138507,3668.0,3667.8,0.6992]
[1736235573771,0.98138507,3668.0,3667.8,0.4266]
[1736235573974,0.98138507,3668.0,3667.9,0.27259]
[1736235574271,1.43628507,3668.0,3667.9,0.27259]
[1736235577079,1.43628507,3668.0,3667.8,0.6992]
[1736235577275,1.70887507,3668.0,3667.8,0.6992]
[1736235577477,1.43628507,3668.0,3667.8,0.6992]
[1736235578678,1.43628507,3668.0,3667.8,0.4266]
[1736235578977,1.43628507,3668.0,3667.9,0.27259]
[1736235579475,0.98138507,3668.0,3667.9,0.27259]
[1736235581887,0.70947,3668.2,3667.8,3.6344]
[1736235581888,1.69085507,3668.2,3667.8,3.6344]
[1736235582073,1.69085507,3668.2,3668.0,0.27258]
[1736235583781,1.41828507,3668.2,3668.0,0.27258]
[1736235583981,1.69085507,3668.2,3668.0,0.27258]
[1736235585081,1.41828507,3668.2,3668.0,0.27258]
[1736235586385,1.41828507,3668.2,3668.1,0.27258]
[1736235586778,1.69085507,3668.2,3668.0,0.27258]
[1736235589080,1.41828507,3668.2,3667.9,4.28064901]
[1736235589384,1.41828507,3668.2,3668.1,0.27258]
[1736235589784,1.69085507,3668.2,3668.0,0.27258]
[1736235590086,1.41828507,3668.2,3668.0,0.27258]
[1736235590288,1.69085507,3668.2,3668.0,0.27258]
[1736235590587,1.69085507,3668.2,3668.0,4.55322901]
[1736235591386,1.69085507,3668.2,3668.1,0.27258]
[1736235591986,1.69085507,3668.2,3668.1,4.55322901]
[1736235593284,1.69085507,3668.2,3668.1,4.28064901]